[Event "Titled Tuesday Blitz August 24 2021"]
[White "Pastar, Slaven"]
[Black "Petrovskyi, Vadym"]
[WhiteFideId "14402718"]
[BlackFideId "14165210"]
[WhiteElo "2150"]
[BlackElo "2334"]
[Result "1/2-1/2"]
[Round "09"]
[TimeControl "180+1"]
[Date "2021.08.24"]
[WhiteClock "0:00:08"]
[BlackClock "0:00:12"]

1. b3 {[%clk 0:03:00]}  e5 {[%clk 0:02:59]} 2. Bb2 {[%clk 0:03:00]}  Nc6 {[%clk 0:03:00]} 3. Nf3 {[%clk 0:03:00]}  d6 {[%clk 0:03:00]} 4. d4 {[%clk 0:03:00]}  exd4 {[%clk 0:02:58]} 5. Nxd4 {[%clk 0:02:59]}  Nf6 {[%clk 0:02:58]} 6. Nxc6 {[%clk 0:02:58]}  bxc6 {[%clk 0:02:56]} 7. g3 {[%clk 0:02:58]}  Bd7 {[%clk 0:02:54]} 8. Bg2 {[%clk 0:02:58]}  Be7 {[%clk 0:02:54]} 9. O-O {[%clk 0:02:59]}  O-O {[%clk 0:02:54]} 10. c4 {[%clk 0:02:59]}  Rb8 {[%clk 0:02:53]} 11. Nc3 {[%clk 0:02:59]}  Re8 {[%clk 0:02:53]} 12. Qd2 {[%clk 0:02:58]}  Bf8 {[%clk 0:02:51]} 13. Rfd1 {[%clk 0:02:56]}  c5 {[%clk 0:02:49]} 14. Rac1 {[%clk 0:02:56]}  g6 {[%clk 0:02:46]} 15. Nd5 {[%clk 0:02:56]}  Bg7 {[%clk 0:02:42]} 16. Bxf6 {[%clk 0:02:43]}  Bxf6 {[%clk 0:02:43]} 17. Nxf6+ {[%clk 0:02:37]}  Qxf6 {[%clk 0:02:42]} 18. e3 {[%clk 0:02:36]}  Rb6 {[%clk 0:02:28]} 19. Qa5 {[%clk 0:02:22]}  a6 {[%clk 0:02:21]} 20. Rd2 {[%clk 0:02:19]}  h5 {[%clk 0:02:17]} 21. h4 {[%clk 0:02:17]}  Bf5 {[%clk 0:02:10]} 22. Qc3 {[%clk 0:02:11]}  Qxc3 {[%clk 0:02:03]} 23. Rxc3 {[%clk 0:02:12]}  Be4 {[%clk 0:02:04]} 24. Bxe4 {[%clk 0:02:08]}  Rxe4 {[%clk 0:02:04]} 25. f3 {[%clk 0:02:05]}  Re8 {[%clk 0:02:04]} 26. e4 {[%clk 0:02:05]}  a5 {[%clk 0:02:04]} 27. Kf2 {[%clk 0:02:05]}  a4 {[%clk 0:02:02]} 28. bxa4 {[%clk 0:01:59]}  Ra8 {[%clk 0:02:00]} 29. Ra3 {[%clk 0:01:55]}  Rba6 {[%clk 0:01:42]} 30. Rb2 {[%clk 0:01:34]}  Kg7 {[%clk 0:01:25]} 31. Rb7 {[%clk 0:01:32]}  Rxa4 {[%clk 0:01:18]} 32. Rxa4 {[%clk 0:01:32]}  Rxa4 {[%clk 0:01:19]} 33. Rxc7 {[%clk 0:01:33]}  Rxc4 {[%clk 0:01:12]} 34. Rc6 {[%clk 0:01:28]}  Rd4 {[%clk 0:01:02]} 35. Ke3 {[%clk 0:01:28]}  Kf8 {[%clk 0:00:52]} 36. e5 {[%clk 0:00:55]}  dxe5 {[%clk 0:00:47]} 37. Rxc5 {[%clk 0:00:54]}  f6 {[%clk 0:00:47]} 38. Ra5 {[%clk 0:00:28]}  Ke7 {[%clk 0:00:43]} 39. f4 {[%clk 0:00:24]}  Ke6 {[%clk 0:00:41]} 40. fxe5 {[%clk 0:00:22]}  fxe5 {[%clk 0:00:42]} 41. Ra8 {[%clk 0:00:21]}  Kf5 {[%clk 0:00:37]} 42. a4 {[%clk 0:00:21]}  Rb4 {[%clk 0:00:31]} 43. a5 {[%clk 0:00:20]}  Rb3+ {[%clk 0:00:31]} 44. Kf2 {[%clk 0:00:20]}  Ra3 {[%clk 0:00:30]} 45. a6 {[%clk 0:00:20]}  Kg4 {[%clk 0:00:30]} 46. a7 {[%clk 0:00:21]}  Ra2+ {[%clk 0:00:29]} 47. Ke3 {[%clk 0:00:20]}  Kxg3 {[%clk 0:00:30]} 48. Rg8 {[%clk 0:00:19]}  Rxa7 {[%clk 0:00:27]} 49. Rxg6+ {[%clk 0:00:19]}  Kxh4 {[%clk 0:00:26]} 50. Ke4 {[%clk 0:00:19]}  Ra5 {[%clk 0:00:23]} 51. Kf3 {[%clk 0:00:16]}  Ra4 {[%clk 0:00:20]} 52. Re6 {[%clk 0:00:15]}  Rf4+ {[%clk 0:00:19]} 53. Ke3 {[%clk 0:00:15]}  Rf5 {[%clk 0:00:19]} 54. Ke4 {[%clk 0:00:13]}  Rg5 {[%clk 0:00:19]} 55. Kf3 {[%clk 0:00:13]}  Kh3 {[%clk 0:00:19]} 56. Ra6 {[%clk 0:00:13]}  h4 {[%clk 0:00:19]} 57. Ra2 {[%clk 0:00:11]}  Rg3+ {[%clk 0:00:19]} 58. Ke4 {[%clk 0:00:11]}  Rg4+ {[%clk 0:00:17]} 59. Kxe5 {[%clk 0:00:09]}  Kg3 {[%clk 0:00:16]} 60. Ra3+ {[%clk 0:00:09]}  Kh2 {[%clk 0:00:16]} 61. Kf5 {[%clk 0:00:09]}  Rg3 {[%clk 0:00:16]} 62. Ra1 {[%clk 0:00:09]}  h3 {[%clk 0:00:15]} 63. Kf4 {[%clk 0:00:09]}  Rg2 {[%clk 0:00:12]} 64. Kf3 {[%clk 0:00:09]}  Rb2 {[%clk 0:00:12]} 65. Rc1 {[%clk 0:00:07]}  Rb3+ {[%clk 0:00:11]} 66. Kf2 {[%clk 0:00:07]}  Rb2+ {[%clk 0:00:12]} 67. Kf3 {[%clk 0:00:08]}  Rg2 {[%clk 0:00:12]} 68. Rb1 {[%clk 0:00:08]}  Rg1 {[%clk 0:00:12]} 69. Rb2+ {[%clk 0:00:07]}  Kh1 {[%clk 0:00:12]} 70. Ra2 {[%clk 0:00:06]}  Rg6 {[%clk 0:00:08]} 71. Ra1+ {[%clk 0:00:06]}  Rg1 {[%clk 0:00:09]} 72. Ra2 {[%clk 0:00:06]}  Rc1 {[%clk 0:00:08]} 73. Rb2 {[%clk 0:00:04]}  Rc3+ {[%clk 0:00:08]} 74. Kf2 {[%clk 0:00:03]}  Kh2 {[%clk 0:00:09]} 75. Kf1+ {[%clk 0:00:03]}  Kh1 {[%clk 0:00:09]} 76. Kf2 {[%clk 0:00:03]}  Rc1 {[%clk 0:00:09]} 77. Rd2 {[%clk 0:00:02]}  h2 {[%clk 0:00:08]} 78. Kg3 {[%clk 0:00:02]}  Rc3+ {[%clk 0:00:07]} 79. Kf2 {[%clk 0:00:02]}  Rc1 {[%clk 0:00:07]} 80. Kg3 {[%clk 0:00:03]}  Kg1 {[%clk 0:00:07]} 81. Rg2+ {[%clk 0:00:02]}  Kf1 {[%clk 0:00:08]} 82. Rxh2 {[%clk 0:00:03]}  Rc3+ {[%clk 0:00:08]} 83. Kg4 {[%clk 0:00:03]}  Kg1 {[%clk 0:00:09]} 84. Rh3 {[%clk 0:00:03]}  Rc4+ {[%clk 0:00:09]} 85. Kg5 {[%clk 0:00:04]}  Kg2 {[%clk 0:00:10]} 86. Rh4 {[%clk 0:00:04]}  Rc5+ {[%clk 0:00:10]} 87. Kg6 {[%clk 0:00:05]}  Kg3 {[%clk 0:00:11]} 88. Rh5 {[%clk 0:00:05]}  Rc6+ {[%clk 0:00:12]} 89. Kf7 {[%clk 0:00:06]}  Kg4 {[%clk 0:00:13]} 90. Rd5 {[%clk 0:00:06]}  Kf4 {[%clk 0:00:13]} 91. Ke7 {[%clk 0:00:06]}  Ke4 {[%clk 0:00:13]} 92. Rd7 {[%clk 0:00:07]}  Ke5 {[%clk 0:00:13]} 93. Kd8 {[%clk 0:00:08]}  Ra6 {[%clk 0:00:12]} 94. Re7+ {[%clk 0:00:08]}  Kf6 {[%clk 0:00:12]} 95. Rd7 {[%clk 0:00:09]}  Ra8+ {[%clk 0:00:12]} 96. Kc7 {[%clk 0:00:09]}  Ke6 {[%clk 0:00:13]} 97. Rd6+ {[%clk 0:00:10]}  Ke5 {[%clk 0:00:13]} 98. Rd8 {[%clk 0:00:08]}  Rxd8 {[%clk 0:00:12]} 99. Kxd8 {[%clk 0:00:08]} 1/2-1/2


[Site "https://www.chess.com"]

[Event "Titled Tuesday Blitz August 24 2021"]
[White "Postny, Evgeny"]
[Black "Borsuk, Konstantin"]
[WhiteFideId "2804344"]
[BlackFideId "14113406"]
[WhiteElo "2741"]
[BlackElo "2609"]
[Result "0-1"]
[Round "09"]
[TimeControl "180+1"]
[Date "2021.08.24"]
[WhiteClock "0:00:01"]
[BlackClock "0:00:05"]

1. c4 {[%clk 0:03:00]}  Nf6 {[%clk 0:02:56]} 2. Nc3 {[%clk 0:03:01]}  c5 {[%clk 0:02:50]} 3. g3 {[%clk 0:03:00]}  g6 {[%clk 0:02:50]} 4. Bg2 {[%clk 0:03:00]}  Bg7 {[%clk 0:02:50]} 5. Nf3 {[%clk 0:03:00]}  O-O {[%clk 0:02:50]} 6. O-O {[%clk 0:03:00]}  Nc6 {[%clk 0:02:49]} 7. d4 {[%clk 0:02:59]}  cxd4 {[%clk 0:02:48]} 8. Nxd4 {[%clk 0:03:00]}  a6 {[%clk 0:02:46]} 9. b3 {[%clk 0:02:51]}  Nxd4 {[%clk 0:02:34]} 10. Qxd4 {[%clk 0:02:52]}  d5 {[%clk 0:02:34]} 11. Bb2 {[%clk 0:02:20]}  Ne4 {[%clk 0:01:42]} 12. Qd3 {[%clk 0:02:20]}  Bf5 {[%clk 0:01:22]} 13. Nxe4 {[%clk 0:01:59]}  Bxb2 {[%clk 0:01:05]} 14. Rab1 {[%clk 0:01:58]}  Bxe4 {[%clk 0:00:41]} 15. Bxe4 {[%clk 0:01:57]}  dxe4 {[%clk 0:00:42]} 16. Qxd8 {[%clk 0:01:57]}  Rfxd8 {[%clk 0:00:41]} 17. Rxb2 {[%clk 0:01:58]}  f5 {[%clk 0:00:39]} 18. Rc1 {[%clk 0:01:48]}  Kf7 {[%clk 0:00:39]} 19. Kf1 {[%clk 0:01:48]}  Kf6 {[%clk 0:00:38]} 20. Ke1 {[%clk 0:01:48]}  Rac8 {[%clk 0:00:37]} 21. Rd2 {[%clk 0:01:44]}  Rxd2 {[%clk 0:00:34]} 22. Kxd2 {[%clk 0:01:45]}  g5 {[%clk 0:00:31]} 23. Kc3 {[%clk 0:01:40]}  Rd8 {[%clk 0:00:30]} 24. b4 {[%clk 0:01:37]}  f4 {[%clk 0:00:29]} 25. gxf4 {[%clk 0:01:29]}  gxf4 {[%clk 0:00:28]} 26. Rg1 {[%clk 0:01:29]}  e5 {[%clk 0:00:27]} 27. a4 {[%clk 0:01:24]}  h5 {[%clk 0:00:24]} 28. h4 {[%clk 0:01:23]}  f3 {[%clk 0:00:22]} 29. Re1 {[%clk 0:00:53]}  Kf5 {[%clk 0:00:20]} 30. c5 {[%clk 0:00:49]}  Kg4 {[%clk 0:00:17]} 31. exf3+ {[%clk 0:00:43]}  Kxf3 {[%clk 0:00:16]} 32. Re3+ {[%clk 0:00:41]}  Kf4 {[%clk 0:00:11]} 33. b5 {[%clk 0:00:40]}  axb5 {[%clk 0:00:10]} 34. axb5 {[%clk 0:00:40]}  Rd1 {[%clk 0:00:11]} 35. Kb4 {[%clk 0:00:35]}  Rf1 {[%clk 0:00:11]} 36. Re2 {[%clk 0:00:31]}  Kf3 {[%clk 0:00:11]} 37. Re3+ {[%clk 0:00:30]}  Kf4 {[%clk 0:00:11]} 38. Re2 {[%clk 0:00:30]}  Kf3 {[%clk 0:00:11]} 39. Rc2 {[%clk 0:00:09]}  Rxf2 {[%clk 0:00:10]} 40. Rxf2+ {[%clk 0:00:08]}  Kxf2 {[%clk 0:00:11]} 41. c6 {[%clk 0:00:09]}  bxc6 {[%clk 0:00:10]} 42. bxc6 {[%clk 0:00:10]}  e3 {[%clk 0:00:11]} 43. c7 {[%clk 0:00:10]}  e2 {[%clk 0:00:11]} 44. c8=Q {[%clk 0:00:11]}  e1=Q+ {[%clk 0:00:11]} 45. Kb5 {[%clk 0:00:12]}  Qe2+ {[%clk 0:00:11]} 46. Kb6 {[%clk 0:00:10]}  Qb2+ {[%clk 0:00:10]} 47. Ka7 {[%clk 0:00:09]}  Qd4+ {[%clk 0:00:10]} 48. Ka8 {[%clk 0:00:08]}  Ke3 {[%clk 0:00:09]} 49. Qh3+ {[%clk 0:00:07]}  Kd2 {[%clk 0:00:08]} 50. Qg2+ {[%clk 0:00:07]}  Ke1 {[%clk 0:00:06]} 51. Qg3+ {[%clk 0:00:06]}  Ke2 {[%clk 0:00:05]} 52. Qg2+ {[%clk 0:00:04]}  Qf2 {[%clk 0:00:05]} 53. Qe4+ {[%clk 0:00:04]}  Qe3 {[%clk 0:00:05]} 54. Qg2+ {[%clk 0:00:02]}  Kd3 {[%clk 0:00:05]} 55. Qd5+ {[%clk 0:00:02]}  Kc3 {[%clk 0:00:06]} 56. Qc6+ {[%clk 0:00:02]}  Kd4 {[%clk 0:00:06]} 57. Qd7+ {[%clk 0:00:02]}  Ke4 {[%clk 0:00:06]} 58. Qa4+ {[%clk 0:00:01]}  Qd4 {[%clk 0:00:05]} 0-1


[Site "https://www.chess.com"]

[Event "Titled Tuesday Blitz August 24 2021"]
[White "Prraneeth Vuppala"]
[Black "Laurusas, Tomas"]
[WhiteFideId "46622373"]
[BlackFideId "12803731"]
[WhiteElo "1759"]
[BlackElo "2542"]
[Result "0-1"]
[Round "09"]
[TimeControl "180+1"]
[Date "2021.08.24"]
[WhiteClock "0:00:07"]
[BlackClock "0:00:25"]

1. e4 {[%clk 0:03:00]}  c6 {[%clk 0:02:57]} 2. d4 {[%clk 0:03:00]}  d5 {[%clk 0:02:58]} 3. exd5 {[%clk 0:03:01]}  cxd5 {[%clk 0:02:58]} 4. Bd3 {[%clk 0:03:01]}  Nf6 {[%clk 0:02:57]} 5. Bf4 {[%clk 0:02:59]}  Qb6 {[%clk 0:02:53]} 6. Na3 {[%clk 0:02:45]}  a6 {[%clk 0:02:39]} 7. Rb1 {[%clk 0:02:35]}  Bg4 {[%clk 0:02:38]} 8. f3 {[%clk 0:02:33]}  Bh5 {[%clk 0:02:36]} 9. Ne2 {[%clk 0:02:32]}  Nc6 {[%clk 0:02:36]} 10. c3 {[%clk 0:02:30]}  Bg6 {[%clk 0:02:35]} 11. Nc2 {[%clk 0:02:29]}  e6 {[%clk 0:02:30]} 12. O-O {[%clk 0:02:26]}  Nh5 {[%clk 0:02:29]} 13. Kh1 {[%clk 0:02:22]}  Nxf4 {[%clk 0:02:24]} 14. Nxf4 {[%clk 0:02:23]}  Bd6 {[%clk 0:02:24]} 15. Nh3 {[%clk 0:02:09]}  Qc7 {[%clk 0:02:11]} 16. f4 {[%clk 0:02:06]}  Bxd3 {[%clk 0:02:02]} 17. Qxd3 {[%clk 0:02:07]}  O-O {[%clk 0:02:02]} 18. Ng5 {[%clk 0:01:57]}  g6 {[%clk 0:02:01]} 19. Qh3 {[%clk 0:01:55]}  h5 {[%clk 0:01:55]} 20. g3 {[%clk 0:01:38]}  Ne7 {[%clk 0:01:44]} 21. Ne3 {[%clk 0:01:32]}  Kg7 {[%clk 0:01:44]} 22. Rbe1 {[%clk 0:01:29]}  Rh8 {[%clk 0:01:43]} 23. Ng2 {[%clk 0:01:16]}  Qd7 {[%clk 0:01:35]} 24. Nh4 {[%clk 0:01:09]}  b5 {[%clk 0:01:34]} 25. Re2 {[%clk 0:01:03]}  b4 {[%clk 0:01:30]} 26. Rfe1 {[%clk 0:01:02]}  Nf5 {[%clk 0:01:29]} 27. Rxe6 {[%clk 0:00:51]}  fxe6 {[%clk 0:01:14]} 28. Nxe6+ {[%clk 0:00:51]}  Kh6 {[%clk 0:00:55]} 29. Nxf5+ {[%clk 0:00:44]}  gxf5 {[%clk 0:00:56]} 30. Qxf5 {[%clk 0:00:37]}  Rhg8 {[%clk 0:00:56]} 31. Qxd5 {[%clk 0:00:29]}  Rae8 {[%clk 0:00:53]} 32. f5 {[%clk 0:00:27]}  bxc3 {[%clk 0:00:53]} 33. bxc3 {[%clk 0:00:27]}  Re7 {[%clk 0:00:53]} 34. f6 {[%clk 0:00:23]}  Rf7 {[%clk 0:00:52]} 35. Qf5 {[%clk 0:00:20]}  Qc6+ {[%clk 0:00:44]} 36. Re4 {[%clk 0:00:20]}  Qxc3 {[%clk 0:00:44]} 37. Rh4 {[%clk 0:00:19]}  Qe1+ {[%clk 0:00:42]} 38. Kg2 {[%clk 0:00:19]}  Qe2+ {[%clk 0:00:41]} 39. Kh3 {[%clk 0:00:18]}  Rg6 {[%clk 0:00:41]} 40. Nf4 {[%clk 0:00:15]}  Bxf4 {[%clk 0:00:41]} 41. Qxf4+ {[%clk 0:00:16]}  Rg5 {[%clk 0:00:35]} 42. d5 {[%clk 0:00:13]}  Kg6 {[%clk 0:00:33]} 43. d6 {[%clk 0:00:13]}  Rxf6 {[%clk 0:00:30]} 44. Qc1 {[%clk 0:00:11]}  Rf2 {[%clk 0:00:26]} 45. Qb1+ {[%clk 0:00:09]}  Kh6 {[%clk 0:00:26]} 46. Qh1 {[%clk 0:00:08]}  Qe6+ {[%clk 0:00:25]} 47. g4 {[%clk 0:00:07]}  Qe3+ {[%clk 0:00:25]} 0-1


[Site "https://www.chess.com"]

[Event "Titled Tuesday Blitz August 24 2021"]
[White "Rodchenkov, Vitaly"]
[Black "Kononenko, Dmitry"]
[WhiteFideId "4152964"]
[BlackFideId "14113538"]
[WhiteElo "2337"]
[BlackElo "2276"]
[Result "0-1"]
[Round "09"]
[TimeControl "180+1"]
[Date "2021.08.24"]
[WhiteClock "0:02:13"]
[BlackClock "0:01:05"]

1. Nf3 {[%clk 0:03:00]}  c5 {[%clk 0:02:59]} 2. b3 {[%clk 0:03:00]}  Nc6 {[%clk 0:02:56]} 3. Bb2 {[%clk 0:03:00]}  Nf6 {[%clk 0:02:57]} 4. e3 {[%clk 0:02:57]}  g6 {[%clk 0:01:26]} 5. Bb5 {[%clk 0:02:49]}  Bg7 {[%clk 0:01:25]} 6. O-O {[%clk 0:02:48]}  O-O {[%clk 0:01:23]} 7. d3 {[%clk 0:02:45]}  Qc7 {[%clk 0:01:18]} 8. Nbd2 {[%clk 0:02:43]}  d6 {[%clk 0:01:19]} 9. e4 {[%clk 0:02:40]}  Ne5 {[%clk 0:01:08]} 10. d4 {[%clk 0:02:32]}  Nxf3+ {[%clk 0:01:07]} 11. Qxf3 {[%clk 0:02:30]}  cxd4 {[%clk 0:01:05]} 12. Bxd4 {[%clk 0:02:30]}  Qxc2 {[%clk 0:01:05]} 13. Rfd1 {[%clk 0:02:23]}  Bg4 {[%clk 0:01:05]} 14. Qd3 {[%clk 0:02:13]}  Bxd1 {[%clk 0:01:05]} 0-1


[Site "https://www.chess.com"]

[Event "Titled Tuesday Blitz August 24 2021"]
[White "Shahade, Gregory"]
[Black "Vakhidov, Shahzod"]
[WhiteFideId "2009064"]
[BlackFideId "14205270"]
[WhiteElo "2668"]
[BlackElo "1988"]
[Result "1-0"]
[Round "09"]
[TimeControl "180+1"]
[Date "2021.08.24"]
[WhiteClock "0:00:51"]
[BlackClock "0:00:23"]

1. e4 {[%clk 0:03:00]}  g6 {[%clk 0:02:59]} 2. d4 {[%clk 0:03:00]}  Bg7 {[%clk 0:02:58]} 3. Nc3 {[%clk 0:03:00]}  d6 {[%clk 0:02:58]} 4. Nf3 {[%clk 0:02:54]}  Nf6 {[%clk 0:02:57]} 5. Be2 {[%clk 0:02:51]}  O-O {[%clk 0:02:56]} 6. O-O {[%clk 0:02:51]}  a6 {[%clk 0:02:55]} 7. a4 {[%clk 0:02:50]}  b6 {[%clk 0:02:55]} 8. Re1 {[%clk 0:02:39]}  Bb7 {[%clk 0:02:55]} 9. Bf1 {[%clk 0:02:37]}  e6 {[%clk 0:02:35]} 10. Bg5 {[%clk 0:02:32]}  h6 {[%clk 0:02:35]} 11. Bh4 {[%clk 0:02:32]}  g5 {[%clk 0:02:32]} 12. Bg3 {[%clk 0:02:32]}  Nh5 {[%clk 0:02:27]} 13. Qd3 {[%clk 0:02:22]}  Nd7 {[%clk 0:02:19]} 14. Rad1 {[%clk 0:02:21]}  f5 {[%clk 0:02:18]} 15. exf5 {[%clk 0:02:18]}  exf5 {[%clk 0:02:18]} 16. Be5 {[%clk 0:01:56]}  dxe5 {[%clk 0:01:22]} 17. dxe5 {[%clk 0:01:56]}  Bxf3 {[%clk 0:01:22]} 18. Qxf3 {[%clk 0:01:51]}  Nxe5 {[%clk 0:00:55]} 19. Rxe5 {[%clk 0:01:31]}  Qf6 {[%clk 0:00:53]} 20. Bc4+ {[%clk 0:01:28]}  Kh8 {[%clk 0:00:51]} 21. Re6 {[%clk 0:01:28]}  g4 {[%clk 0:00:40]} 22. Qc6 {[%clk 0:00:58]}  Qg5 {[%clk 0:00:40]} 23. Rg6 {[%clk 0:00:58]}  Qf4 {[%clk 0:00:23]} 24. g3 {[%clk 0:00:51]} 1-0


[Site "https://www.chess.com"]

[Event "Titled Tuesday Blitz August 24 2021"]
[White "Shimelkov, Vasiliy"]
[Black "Pichot, Alan"]
[WhiteFideId "13701630"]
[BlackFideId "110973"]
[WhiteElo "2073"]
[BlackElo "2622"]
[Result "1/2-1/2"]
[Round "09"]
[TimeControl "180+1"]
[Date "2021.08.24"]
[WhiteClock "0:00:14"]
[BlackClock "0:00:04"]

1. d4 {[%clk 0:03:00]}  Nf6 {[%clk 0:02:59]} 2. c4 {[%clk 0:03:00]}  e6 {[%clk 0:02:55]} 3. Nf3 {[%clk 0:02:57]}  Bb4+ {[%clk 0:02:53]} 4. Bd2 {[%clk 0:02:57]}  a5 {[%clk 0:02:52]} 5. g3 {[%clk 0:02:56]}  d6 {[%clk 0:02:51]} 6. Bg2 {[%clk 0:02:54]}  O-O {[%clk 0:02:48]} 7. O-O {[%clk 0:02:52]}  Bxd2 {[%clk 0:02:48]} 8. Nbxd2 {[%clk 0:02:48]}  Qe7 {[%clk 0:02:48]} 9. e4 {[%clk 0:02:47]}  e5 {[%clk 0:02:48]} 10. d5 {[%clk 0:02:47]}  Na6 {[%clk 0:02:44]} 11. Ne1 {[%clk 0:02:45]}  Nc5 {[%clk 0:02:43]} 12. Qe2 {[%clk 0:02:43]}  Bd7 {[%clk 0:02:43]} 13. b3 {[%clk 0:02:41]}  c6 {[%clk 0:02:37]} 14. Nd3 {[%clk 0:02:39]}  Nxd3 {[%clk 0:02:28]} 15. Qxd3 {[%clk 0:02:38]}  Rfd8 {[%clk 0:02:16]} 16. f4 {[%clk 0:02:34]}  c5 {[%clk 0:02:06]} 17. f5 {[%clk 0:02:29]}  a4 {[%clk 0:02:02]} 18. h3 {[%clk 0:02:25]}  Ra6 {[%clk 0:01:58]} 19. g4 {[%clk 0:02:22]}  h6 {[%clk 0:01:59]} 20. Bf3 {[%clk 0:02:13]}  Rda8 {[%clk 0:01:58]} 21. a3 {[%clk 0:02:03]}  axb3 {[%clk 0:01:57]} 22. Qxb3 {[%clk 0:02:02]}  Qd8 {[%clk 0:01:56]} 23. Kg2 {[%clk 0:01:53]}  Qa5 {[%clk 0:01:43]} 24. Rf2 {[%clk 0:01:49]}  b5 {[%clk 0:01:38]} 25. cxb5 {[%clk 0:01:45]}  Bxb5 {[%clk 0:01:38]} 26. h4 {[%clk 0:01:40]}  Nh7 {[%clk 0:01:34]} 27. Be2 {[%clk 0:01:34]}  Bxe2 {[%clk 0:01:25]} 28. Rxe2 {[%clk 0:01:33]}  Rb6 {[%clk 0:01:22]} 29. Qc2 {[%clk 0:01:30]}  Qb5 {[%clk 0:01:06]} 30. Nc4 {[%clk 0:01:25]}  Rba6 {[%clk 0:01:06]} 31. Rd2 {[%clk 0:01:16]}  Nf6 {[%clk 0:01:05]} 32. Kf3 {[%clk 0:01:13]}  Ra4 {[%clk 0:01:01]} 33. Rc1 {[%clk 0:01:10]}  Rxa3+ {[%clk 0:00:51]} 34. Nxa3 {[%clk 0:01:02]}  Rxa3+ {[%clk 0:00:52]} 35. Kg2 {[%clk 0:01:00]}  Nxg4 {[%clk 0:00:52]} 36. Rb1 {[%clk 0:00:56]}  Qa6 {[%clk 0:00:40]} 37. Qc1 {[%clk 0:00:52]}  Qa4 {[%clk 0:00:26]} 38. Re2 {[%clk 0:00:46]}  Nf6 {[%clk 0:00:24]} 39. Qc2 {[%clk 0:00:43]}  Qa6 {[%clk 0:00:16]} 40. Ree1 {[%clk 0:00:34]}  Ra2 {[%clk 0:00:14]} 41. Rb2 {[%clk 0:00:32]}  Rxb2 {[%clk 0:00:14]} 42. Qxb2 {[%clk 0:00:32]}  Qd3 {[%clk 0:00:15]} 43. Qe2 {[%clk 0:00:29]}  Qc3 {[%clk 0:00:12]} 44. Rb1 {[%clk 0:00:28]}  Kh7 {[%clk 0:00:08]} 45. Re1 {[%clk 0:00:25]}  Nh5 {[%clk 0:00:04]} 46. Qe3 {[%clk 0:00:23]}  Nf4+ {[%clk 0:00:04]} 47. Kh1 {[%clk 0:00:21]}  Qc2 {[%clk 0:00:04]} 48. Qg1 {[%clk 0:00:19]}  g6 {[%clk 0:00:04]} 49. fxg6+ {[%clk 0:00:18]}  fxg6 {[%clk 0:00:05]} 50. Qg4 {[%clk 0:00:17]}  h5 {[%clk 0:00:03]} 51. Qg5 {[%clk 0:00:15]}  Qf2 {[%clk 0:00:02]} 52. Qe7+ {[%clk 0:00:14]}  Kh6 {[%clk 0:00:02]} 53. Qg5+ {[%clk 0:00:13]}  Kg7 {[%clk 0:00:02]} 54. Qe7+ {[%clk 0:00:13]}  Kg8 {[%clk 0:00:03]} 55. Qe8+ {[%clk 0:00:14]}  Kh7 {[%clk 0:00:03]} 56. Qe7+ {[%clk 0:00:13]}  Kh6 {[%clk 0:00:04]} 57. Qg5+ {[%clk 0:00:14]}  Kg7 {[%clk 0:00:04]} 58. Qe7+ {[%clk 0:00:14]}  Kh6 {[%clk 0:00:04]} 1/2-1/2


[Site "https://www.chess.com"]

[Event "Titled Tuesday Blitz August 24 2021"]
[White "Shuvalova, Polina"]
[Black "Dmitrenko, Viktor"]
[WhiteFideId "24171760"]
[BlackFideId "14110270"]
[WhiteElo "2299"]
[BlackElo "2338"]
[Result "1-0"]
[Round "09"]
[TimeControl "180+1"]
[Date "2021.08.24"]
[WhiteClock "0:00:04"]
[BlackClock "0:00:05"]

1. d4 {[%clk 0:02:52]}  e6 {[%clk 0:02:55]} 2. Nf3 {[%clk 0:02:53]}  Nf6 {[%clk 0:02:48]} 3. Bf4 {[%clk 0:02:51]}  c5 {[%clk 0:02:47]} 4. e3 {[%clk 0:02:45]}  d5 {[%clk 0:02:46]} 5. c3 {[%clk 0:02:43]}  Bd6 {[%clk 0:02:45]} 6. Nbd2 {[%clk 0:02:43]}  Bxf4 {[%clk 0:02:43]} 7. exf4 {[%clk 0:02:43]}  cxd4 {[%clk 0:02:44]} 8. Nxd4 {[%clk 0:02:42]}  Qc7 {[%clk 0:02:37]} 9. g3 {[%clk 0:02:31]}  a6 {[%clk 0:02:35]} 10. Bd3 {[%clk 0:02:29]}  e5 {[%clk 0:02:26]} 11. fxe5 {[%clk 0:02:23]}  Qxe5+ {[%clk 0:02:25]} 12. Qe2 {[%clk 0:02:24]}  Qxe2+ {[%clk 0:02:23]} 13. Kxe2 {[%clk 0:02:17]}  O-O {[%clk 0:02:24]} 14. Rhe1 {[%clk 0:02:16]}  Bh3 {[%clk 0:02:22]} 15. f3 {[%clk 0:02:15]}  h5 {[%clk 0:02:19]} 16. N2b3 {[%clk 0:02:09]}  Nbd7 {[%clk 0:02:16]} 17. Kf2 {[%clk 0:02:08]}  g6 {[%clk 0:02:14]} 18. a4 {[%clk 0:01:49]}  Kg7 {[%clk 0:02:11]} 19. a5 {[%clk 0:01:48]}  Rfe8 {[%clk 0:02:08]} 20. Nc2 {[%clk 0:01:41]}  Ne5 {[%clk 0:02:07]} 21. Be2 {[%clk 0:01:37]}  Rad8 {[%clk 0:02:01]} 22. Rad1 {[%clk 0:01:26]}  Bf5 {[%clk 0:01:58]} 23. Nb4 {[%clk 0:01:22]}  Nc4 {[%clk 0:01:53]} 24. Bxc4 {[%clk 0:01:18]}  dxc4 {[%clk 0:01:54]} 25. Nc5 {[%clk 0:01:11]}  Bc8 {[%clk 0:01:52]} 26. h4 {[%clk 0:01:04]}  Kf8 {[%clk 0:01:50]} 27. Rxe8+ {[%clk 0:01:02]}  Kxe8 {[%clk 0:01:45]} 28. Rxd8+ {[%clk 0:01:02]}  Kxd8 {[%clk 0:01:45]} 29. Ke3 {[%clk 0:01:03]}  Ne8 {[%clk 0:01:28]} 30. Nd5 {[%clk 0:00:48]}  Nd6 {[%clk 0:01:26]} 31. Kf4 {[%clk 0:00:45]}  Nf5 {[%clk 0:01:03]} 32. Ne3 {[%clk 0:00:40]}  Nd6 {[%clk 0:01:02]} 33. g4 {[%clk 0:00:39]}  Kc7 {[%clk 0:00:56]} 34. Ne4 {[%clk 0:00:35]}  Nxe4 {[%clk 0:00:52]} 35. Kxe4 {[%clk 0:00:35]}  Be6 {[%clk 0:00:49]} 36. gxh5 {[%clk 0:00:33]}  gxh5 {[%clk 0:00:49]} 37. Kf4 {[%clk 0:00:33]}  Kc6 {[%clk 0:00:48]} 38. Kg5 {[%clk 0:00:33]}  Kb5 {[%clk 0:00:46]} 39. Kxh5 {[%clk 0:00:34]}  Kxa5 {[%clk 0:00:45]} 40. Kg5 {[%clk 0:00:33]}  Ka4 {[%clk 0:00:34]} 41. h5 {[%clk 0:00:33]}  f5 {[%clk 0:00:28]} 42. h6 {[%clk 0:00:31]}  Bg8 {[%clk 0:00:28]} 43. Kg6 {[%clk 0:00:31]}  Kb3 {[%clk 0:00:26]} 44. Kg7 {[%clk 0:00:30]}  f4 {[%clk 0:00:26]} 45. Ng4 {[%clk 0:00:20]}  Bd5 {[%clk 0:00:22]} 46. h7 {[%clk 0:00:20]}  Bxf3 {[%clk 0:00:23]} 47. Ne5 {[%clk 0:00:18]}  Bd5 {[%clk 0:00:22]} 48. h8=Q {[%clk 0:00:18]}  Kxb2 {[%clk 0:00:22]} 49. Qd8 {[%clk 0:00:14]}  Be4 {[%clk 0:00:19]} 50. Qd4 {[%clk 0:00:12]}  Bf5 {[%clk 0:00:13]} 51. Qxf4 {[%clk 0:00:12]}  Be6 {[%clk 0:00:13]} 52. Qd4 {[%clk 0:00:11]}  Kb3 {[%clk 0:00:12]} 53. Kf6 {[%clk 0:00:11]}  Bg8 {[%clk 0:00:10]} 54. Nf3 {[%clk 0:00:08]}  b5 {[%clk 0:00:10]} 55. Ke5 {[%clk 0:00:07]}  a5 {[%clk 0:00:09]} 56. Kf4 {[%clk 0:00:04]}  a4 {[%clk 0:00:09]} 57. Nd2+ {[%clk 0:00:04]}  Kc2 {[%clk 0:00:09]} 58. Qd6 {[%clk 0:00:04]}  Kxc3 {[%clk 0:00:06]} 59. Ke3 {[%clk 0:00:04]}  b4 {[%clk 0:00:06]} 60. Qd4+ {[%clk 0:00:04]}  Kc2 {[%clk 0:00:06]} 61. Nxc4 {[%clk 0:00:03]}  a3 {[%clk 0:00:05]} 62. Qd2+ {[%clk 0:00:03]}  Kb3 {[%clk 0:00:05]} 63. Na5+ {[%clk 0:00:03]}  Ka4 {[%clk 0:00:05]} 64. Nc6 {[%clk 0:00:04]} 1-0


[Site "https://www.chess.com"]